{"text_format":"3","workbook":"xlsx","n_sheets":5,"sheets":["Faktura","Kunder","Fakturaer – Hoved","Fakturadetaljer","Om sporing av salgsfaktura"],"not_rendered":{"defined_names":8},"read":"whole","date_system":"1900"}

{"sheet":"Faktura","index":0,"n_rows":39,"n_cols":7,"rows_kept":39,"merged":[[1,1,1,2],[1,3,1,4],[1,5,1,6],[2,1,2,2],[2,3,2,4],[2,5,2,6],[3,3,3,4],[4,3,4,4],[5,3,5,4],[37,1,37,4],[38,1,38,4]]}
[null,"Firmanavn"]
[null,"Gateadresse",null,"T: Telefonnummer",null,"E-post"]
[null,"Poststed og postnummer",null,"F: Faksnummer",null,"Nettsted"]
[null,"Fakturer til:",{"$f":"IFERROR(VLOOKUP(VLOOKUP(rngInvoice,InvoicesMain[],2,FALSE),CustomerList[],3,TRUE),\"\")","v":"Contoso, Ltd"},{"$f":"\"Telefon: \"&IFERROR(VLOOKUP(VLOOKUP(rngInvoice,InvoicesMain[],2,FALSE),CustomerList[],9,FALSE),\"\")","v":"Telefon: 432-555-0189"},null,"Fakturanummer:","3-456-2"]
[null,"Adresse:",{"$f":"IFERROR(IF((VLOOKUP(VLOOKUP(rngInvoice,InvoicesMain[],2,FALSE),CustomerList[],5,FALSE))=\"\",\"\",(VLOOKUP(VLOOKUP(rngInvoice,InvoicesMain[],2,FALSE),CustomerList[],5,FALSE))),\"\")","v":"567 Walnut Lane"},{"$f":"\"Faks:     \"&IFERROR(VLOOKUP(VLOOKUP(rngInvoice,InvoicesMain[],2,FALSE),CustomerList[],11,FALSE),\"\")","v":"Faks:     432-555-0123"},null,"Fakturadato:",{"$f":"IFERROR(IF(VLOOKUP(rngInvoice,InvoicesMain[],3,FALSE)=\"\",\"\",VLOOKUP(rngInvoice,InvoicesMain[],3,FALSE)),\"\")","v":"2019-08-11"}]
[null,null,{"$f":"IFERROR(VLOOKUP(VLOOKUP(rngInvoice,InvoicesMain[],2,FALSE),CustomerList[],6,FALSE)&\", \"& VLOOKUP(VLOOKUP(G4,InvoicesMain[],2,FALSE),CustomerList[],7,FALSE)&\" \"&VLOOKUP(VLOOKUP(G4,InvoicesMain[],2,FALSE),CustomerList[],8,FALSE),\"\")","v":"Moline, MO 098765"},{"$f":"\"E-post: \"&IFERROR(VLOOKUP(VLOOKUP(rngInvoice,InvoicesMain[],2,FALSE),CustomerList[],10,FALSE),\"\")","v":"E-post: noen@eksempel.com"}]
[null,{"$f":"\"Faktura for: \"&IFERROR(VLOOKUP(rngInvoice,InvoicesMain[],4),\"\")","v":"Faktura for: Prosjekt 2"}]
[null,"Varenummer","Beskrivelse","Mengde","Enhetspris","Rabatt","Pris"]
[null,{"$f":"IFERROR(INDEX(Fakturadetaljer[],SMALL(IF(Fakturadetaljer[Fakturanummer]=rngInvoice,ROW(Fakturadetaljer[])-ROW(Fakturadetaljer[#Headers])), ROW(1:1)), MATCH($B$8, Fakturadetaljer[#Headers], 0)),\"\")","v":"Z4567"},{"$f":"IFERROR(INDEX(Fakturadetaljer[],SMALL(IF(Fakturadetaljer[Fakturanummer]=rngInvoice,ROW(Fakturadetaljer[])-ROW(Fakturadetaljer[#Headers])), ROW(1:1)), MATCH($C$8, Fakturadetaljer[#Headers], 0)),\"\")","v":"Faktura 3-456-2 Data 1"},{"$f":"IFERROR(INDEX(Fakturadetaljer[],SMALL(IF(Fakturadetaljer[Fakturanummer]=rngInvoice,ROW(Fakturadetaljer[])-ROW(Fakturadetaljer[#Headers])), ROW(1:1)), MATCH($D$8, Fakturadetaljer[#Headers], 0)),\"\")","v":39},{"$f":"IFERROR(INDEX(Fakturadetaljer[],SMALL(IF(Fakturadetaljer[Fakturanummer]=rngInvoice,ROW(Fakturadetaljer[])-ROW(Fakturadetaljer[#Headers])), ROW(1:1)), MATCH($E$8, Fakturadetaljer[#Headers], 0)),\"\")","v":{"v":5,"d":"kr 5.00"}},{"$f":"IFERROR(INDEX(Fakturadetaljer[],SMALL(IF(Fakturadetaljer[Fakturanummer]=rngInvoice,ROW(Fakturadetaljer[])-ROW(Fakturadetaljer[#Headers])), ROW(1:1)), MATCH($F$8, Fakturadetaljer[#Headers], 0)),\"\")","v":0},{"$f":"IFERROR((D9*E9)-F9,\"\")","v":{"v":195,"d":"kr 195.00"}}]
[null,{"$f":"IFERROR(INDEX(Fakturadetaljer[],SMALL(IF(Fakturadetaljer[Fakturanummer]=rngInvoice,ROW(Fakturadetaljer[])-ROW(Fakturadetaljer[#Headers])), ROW(2:2)), MATCH($B$8, Fakturadetaljer[#Headers], 0)),\"\")","v":"Z4568"},{"$f":"IFERROR(INDEX(Fakturadetaljer[],SMALL(IF(Fakturadetaljer[Fakturanummer]=rngInvoice,ROW(Fakturadetaljer[])-ROW(Fakturadetaljer[#Headers])), ROW(2:2)), MATCH($C$8, Fakturadetaljer[#Headers], 0)),\"\")","v":"Faktura 3-456-2 Data 2"},{"$f":"IFERROR(INDEX(Fakturadetaljer[],SMALL(IF(Fakturadetaljer[Fakturanummer]=rngInvoice,ROW(Fakturadetaljer[])-ROW(Fakturadetaljer[#Headers])), ROW(2:2)), MATCH($D$8, Fakturadetaljer[#Headers], 0)),\"\")","v":40},{"$f":"IFERROR(INDEX(Fakturadetaljer[],SMALL(IF(Fakturadetaljer[Fakturanummer]=rngInvoice,ROW(Fakturadetaljer[])-ROW(Fakturadetaljer[#Headers])), ROW(2:2)), MATCH($E$8, Fakturadetaljer[#Headers], 0)),\"\")","v":{"v":4,"d":"kr 4.00"}},{"$f":"IFERROR(INDEX(Fakturadetaljer[],SMALL(IF(Fakturadetaljer[Fakturanummer]=rngInvoice,ROW(Fakturadetaljer[])-ROW(Fakturadetaljer[#Headers])), ROW(2:2)), MATCH($F$8, Fakturadetaljer[#Headers], 0)),\"\")","v":{"v":5,"d":"kr 5.00"}},{"v":155,"d":"kr 155.00"}]
[null,{"$f":"IFERROR(INDEX(Fakturadetaljer[],SMALL(IF(Fakturadetaljer[Fakturanummer]=rngInvoice,ROW(Fakturadetaljer[])-ROW(Fakturadetaljer[#Headers])), ROW(3:3)), MATCH($B$8, Fakturadetaljer[#Headers], 0)),\"\")","v":"Z4569"},{"$f":"IFERROR(INDEX(Fakturadetaljer[],SMALL(IF(Fakturadetaljer[Fakturanummer]=rngInvoice,ROW(Fakturadetaljer[])-ROW(Fakturadetaljer[#Headers])), ROW(3:3)), MATCH($C$8, Fakturadetaljer[#Headers], 0)),\"\")","v":"Faktura 3-456-2 Data 3"},{"$f":"IFERROR(INDEX(Fakturadetaljer[],SMALL(IF(Fakturadetaljer[Fakturanummer]=rngInvoice,ROW(Fakturadetaljer[])-ROW(Fakturadetaljer[#Headers])), ROW(3:3)), MATCH($D$8, Fakturadetaljer[#Headers], 0)),\"\")","v":30},{"$f":"IFERROR(INDEX(Fakturadetaljer[],SMALL(IF(Fakturadetaljer[Fakturanummer]=rngInvoice,ROW(Fakturadetaljer[])-ROW(Fakturadetaljer[#Headers])), ROW(3:3)), MATCH($E$8, Fakturadetaljer[#Headers], 0)),\"\")","v":{"v":6,"d":"kr 6.00"}},{"$f":"IFERROR(INDEX(Fakturadetaljer[],SMALL(IF(Fakturadetaljer[Fakturanummer]=rngInvoice,ROW(Fakturadetaljer[])-ROW(Fakturadetaljer[#Headers])), ROW(3:3)), MATCH($F$8, Fakturadetaljer[#Headers], 0)),\"\")","v":{"v":7,"d":"kr 7.00"}},{"v":173,"d":"kr 173.00"}]
[null,{"$f":"IFERROR(INDEX(Fakturadetaljer[],SMALL(IF(Fakturadetaljer[Fakturanummer]=rngInvoice,ROW(Fakturadetaljer[])-ROW(Fakturadetaljer[#Headers])), ROW(4:4)), MATCH($B$8, Fakturadetaljer[#Headers], 0)),\"\")","v":"Z4570"},{"$f":"IFERROR(INDEX(Fakturadetaljer[],SMALL(IF(Fakturadetaljer[Fakturanummer]=rngInvoice,ROW(Fakturadetaljer[])-ROW(Fakturadetaljer[#Headers])), ROW(4:4)), MATCH($C$8, Fakturadetaljer[#Headers], 0)),\"\")","v":"Faktura 3-456-2 Data 4"},{"$f":"IFERROR(INDEX(Fakturadetaljer[],SMALL(IF(Fakturadetaljer[Fakturanummer]=rngInvoice,ROW(Fakturadetaljer[])-ROW(Fakturadetaljer[#Headers])), ROW(4:4)), MATCH($D$8, Fakturadetaljer[#Headers], 0)),\"\")","v":40},{"$f":"IFERROR(INDEX(Fakturadetaljer[],SMALL(IF(Fakturadetaljer[Fakturanummer]=rngInvoice,ROW(Fakturadetaljer[])-ROW(Fakturadetaljer[#Headers])), ROW(4:4)), MATCH($E$8, Fakturadetaljer[#Headers], 0)),\"\")","v":{"v":7,"d":"kr 7.00"}},{"$f":"IFERROR(INDEX(Fakturadetaljer[],SMALL(IF(Fakturadetaljer[Fakturanummer]=rngInvoice,ROW(Fakturadetaljer[])-ROW(Fakturadetaljer[#Headers])), ROW(4:4)), MATCH($F$8, Fakturadetaljer[#Headers], 0)),\"\")","v":0},{"v":280,"d":"kr 280.00"}]
[null,{"$f":"IFERROR(INDEX(Fakturadetaljer[],SMALL(IF(Fakturadetaljer[Fakturanummer]=rngInvoice,ROW(Fakturadetaljer[])-ROW(Fakturadetaljer[#Headers])), ROW(5:5)), MATCH($B$8, Fakturadetaljer[#Headers], 0)),\"\")","v":"Z4571"},{"$f":"IFERROR(INDEX(Fakturadetaljer[],SMALL(IF(Fakturadetaljer[Fakturanummer]=rngInvoice,ROW(Fakturadetaljer[])-ROW(Fakturadetaljer[#Headers])), ROW(5:5)), MATCH($C$8, Fakturadetaljer[#Headers], 0)),\"\")","v":"Faktura 3-456-2 Data 5"},{"$f":"IFERROR(INDEX(Fakturadetaljer[],SMALL(IF(Fakturadetaljer[Fakturanummer]=rngInvoice,ROW(Fakturadetaljer[])-ROW(Fakturadetaljer[#Headers])), ROW(5:5)), MATCH($D$8, Fakturadetaljer[#Headers], 0)),\"\")","v":10},{"$f":"IFERROR(INDEX(Fakturadetaljer[],SMALL(IF(Fakturadetaljer[Fakturanummer]=rngInvoice,ROW(Fakturadetaljer[])-ROW(Fakturadetaljer[#Headers])), ROW(5:5)), MATCH($E$8, Fakturadetaljer[#Headers], 0)),\"\")","v":{"v":4,"d":"kr 4.00"}},{"$f":"IFERROR(INDEX(Fakturadetaljer[],SMALL(IF(Fakturadetaljer[Fakturanummer]=rngInvoice,ROW(Fakturadetaljer[])-ROW(Fakturadetaljer[#Headers])), ROW(5:5)), MATCH($F$8, Fakturadetaljer[#Headers], 0)),\"\")","v":0},{"v":40,"d":"kr 40.00"}]
[null,{"$f":"IFERROR(INDEX(Fakturadetaljer[],SMALL(IF(Fakturadetaljer[Fakturanummer]=rngInvoice,ROW(Fakturadetaljer[])-ROW(Fakturadetaljer[#Headers])), ROW(6:6)), MATCH($B$8, Fakturadetaljer[#Headers], 0)),\"\")","v":"Z4572"},{"$f":"IFERROR(INDEX(Fakturadetaljer[],SMALL(IF(Fakturadetaljer[Fakturanummer]=rngInvoice,ROW(Fakturadetaljer[])-ROW(Fakturadetaljer[#Headers])), ROW(6:6)), MATCH($C$8, Fakturadetaljer[#Headers], 0)),\"\")","v":"Faktura 3-456-2 Data 6"},{"$f":"IFERROR(INDEX(Fakturadetaljer[],SMALL(IF(Fakturadetaljer[Fakturanummer]=rngInvoice,ROW(Fakturadetaljer[])-ROW(Fakturadetaljer[#Headers])), ROW(6:6)), MATCH($D$8, Fakturadetaljer[#Headers], 0)),\"\")","v":5},{"$f":"IFERROR(INDEX(Fakturadetaljer[],SMALL(IF(Fakturadetaljer[Fakturanummer]=rngInvoice,ROW(Fakturadetaljer[])-ROW(Fakturadetaljer[#Headers])), ROW(6:6)), MATCH($E$8, Fakturadetaljer[#Headers], 0)),\"\")","v":{"v":8,"d":"kr 8.00"}},{"$f":"IFERROR(INDEX(Fakturadetaljer[],SMALL(IF(Fakturadetaljer[Fakturanummer]=rngInvoice,ROW(Fakturadetaljer[])-ROW(Fakturadetaljer[#Headers])), ROW(6:6)), MATCH($F$8, Fakturadetaljer[#Headers], 0)),\"\")","v":0},{"v":40,"d":"kr 40.00"}]
[null,{"$f":"IFERROR(INDEX(Fakturadetaljer[],SMALL(IF(Fakturadetaljer[Fakturanummer]=rngInvoice,ROW(Fakturadetaljer[])-ROW(Fakturadetaljer[#Headers])), ROW(7:7)), MATCH($B$8, Fakturadetaljer[#Headers], 0)),\"\")","v":"Z4573"},{"$f":"IFERROR(INDEX(Fakturadetaljer[],SMALL(IF(Fakturadetaljer[Fakturanummer]=rngInvoice,ROW(Fakturadetaljer[])-ROW(Fakturadetaljer[#Headers])), ROW(7:7)), MATCH($C$8, Fakturadetaljer[#Headers], 0)),\"\")","v":"Faktura 3-456-2 Data 7"},{"$f":"IFERROR(INDEX(Fakturadetaljer[],SMALL(IF(Fakturadetaljer[Fakturanummer]=rngInvoice,ROW(Fakturadetaljer[])-ROW(Fakturadetaljer[#Headers])), ROW(7:7)), MATCH($D$8, Fakturadetaljer[#Headers], 0)),\"\")","v":70},{"$f":"IFERROR(INDEX(Fakturadetaljer[],SMALL(IF(Fakturadetaljer[Fakturanummer]=rngInvoice,ROW(Fakturadetaljer[])-ROW(Fakturadetaljer[#Headers])), ROW(7:7)), MATCH($E$8, Fakturadetaljer[#Headers], 0)),\"\")","v":{"v":6,"d":"kr 6.00"}},{"$f":"IFERROR(INDEX(Fakturadetaljer[],SMALL(IF(Fakturadetaljer[Fakturanummer]=rngInvoice,ROW(Fakturadetaljer[])-ROW(Fakturadetaljer[#Headers])), ROW(7:7)), MATCH($F$8, Fakturadetaljer[#Headers], 0)),\"\")","v":0},{"v":420,"d":"kr 420.00"}]
[null,{"$f":"IFERROR(INDEX(Fakturadetaljer[],SMALL(IF(Fakturadetaljer[Fakturanummer]=rngInvoice,ROW(Fakturadetaljer[])-ROW(Fakturadetaljer[#Headers])), ROW(8:8)), MATCH($B$8, Fakturadetaljer[#Headers], 0)),\"\")","v":"Z4574"},{"$f":"IFERROR(INDEX(Fakturadetaljer[],SMALL(IF(Fakturadetaljer[Fakturanummer]=rngInvoice,ROW(Fakturadetaljer[])-ROW(Fakturadetaljer[#Headers])), ROW(8:8)), MATCH($C$8, Fakturadetaljer[#Headers], 0)),\"\")","v":"Faktura 3-456-2 Data 8"},{"$f":"IFERROR(INDEX(Fakturadetaljer[],SMALL(IF(Fakturadetaljer[Fakturanummer]=rngInvoice,ROW(Fakturadetaljer[])-ROW(Fakturadetaljer[#Headers])), ROW(8:8)), MATCH($D$8, Fakturadetaljer[#Headers], 0)),\"\")","v":25},{"$f":"IFERROR(INDEX(Fakturadetaljer[],SMALL(IF(Fakturadetaljer[Fakturanummer]=rngInvoice,ROW(Fakturadetaljer[])-ROW(Fakturadetaljer[#Headers])), ROW(8:8)), MATCH($E$8, Fakturadetaljer[#Headers], 0)),\"\")","v":{"v":4,"d":"kr 4.00"}},{"$f":"IFERROR(INDEX(Fakturadetaljer[],SMALL(IF(Fakturadetaljer[Fakturanummer]=rngInvoice,ROW(Fakturadetaljer[])-ROW(Fakturadetaljer[#Headers])), ROW(8:8)), MATCH($F$8, Fakturadetaljer[#Headers], 0)),\"\")","v":0},{"v":100,"d":"kr 100.00"}]
[null,{"$f":"IFERROR(INDEX(Fakturadetaljer[],SMALL(IF(Fakturadetaljer[Fakturanummer]=rngInvoice,ROW(Fakturadetaljer[])-ROW(Fakturadetaljer[#Headers])), ROW(9:9)), MATCH($B$8, Fakturadetaljer[#Headers], 0)),\"\")","v":"Z4575"},{"$f":"IFERROR(INDEX(Fakturadetaljer[],SMALL(IF(Fakturadetaljer[Fakturanummer]=rngInvoice,ROW(Fakturadetaljer[])-ROW(Fakturadetaljer[#Headers])), ROW(9:9)), MATCH($C$8, Fakturadetaljer[#Headers], 0)),\"\")","v":"Faktura 3-456-2 Data 9"},{"$f":"IFERROR(INDEX(Fakturadetaljer[],SMALL(IF(Fakturadetaljer[Fakturanummer]=rngInvoice,ROW(Fakturadetaljer[])-ROW(Fakturadetaljer[#Headers])), ROW(9:9)), MATCH($D$8, Fakturadetaljer[#Headers], 0)),\"\")","v":5},{"$f":"IFERROR(INDEX(Fakturadetaljer[],SMALL(IF(Fakturadetaljer[Fakturanummer]=rngInvoice,ROW(Fakturadetaljer[])-ROW(Fakturadetaljer[#Headers])), ROW(9:9)), MATCH($E$8, Fakturadetaljer[#Headers], 0)),\"\")","v":{"v":7,"d":"kr 7.00"}},{"$f":"IFERROR(INDEX(Fakturadetaljer[],SMALL(IF(Fakturadetaljer[Fakturanummer]=rngInvoice,ROW(Fakturadetaljer[])-ROW(Fakturadetaljer[#Headers])), ROW(9:9)), MATCH($F$8, Fakturadetaljer[#Headers], 0)),\"\")","v":{"v":3,"d":"kr 3.00"}},{"v":32,"d":"kr 32.00"}]
[null,{"$f":"IFERROR(INDEX(Fakturadetaljer[],SMALL(IF(Fakturadetaljer[Fakturanummer]=rngInvoice,ROW(Fakturadetaljer[])-ROW(Fakturadetaljer[#Headers])), ROW(10:10)), MATCH($B$8, Fakturadetaljer[#Headers], 0)),\"\")","v":"Z4576"},{"$f":"IFERROR(INDEX(Fakturadetaljer[],SMALL(IF(Fakturadetaljer[Fakturanummer]=rngInvoice,ROW(Fakturadetaljer[])-ROW(Fakturadetaljer[#Headers])), ROW(10:10)), MATCH($C$8, Fakturadetaljer[#Headers], 0)),\"\")","v":"Faktura 3-456-2 Data 10"},{"$f":"IFERROR(INDEX(Fakturadetaljer[],SMALL(IF(Fakturadetaljer[Fakturanummer]=rngInvoice,ROW(Fakturadetaljer[])-ROW(Fakturadetaljer[#Headers])), ROW(10:10)), MATCH($D$8, Fakturadetaljer[#Headers], 0)),\"\")","v":80},{"$f":"IFERROR(INDEX(Fakturadetaljer[],SMALL(IF(Fakturadetaljer[Fakturanummer]=rngInvoice,ROW(Fakturadetaljer[])-ROW(Fakturadetaljer[#Headers])), ROW(10:10)), MATCH($E$8, Fakturadetaljer[#Headers], 0)),\"\")","v":{"v":1,"d":"kr 1.00"}},{"$f":"IFERROR(INDEX(Fakturadetaljer[],SMALL(IF(Fakturadetaljer[Fakturanummer]=rngInvoice,ROW(Fakturadetaljer[])-ROW(Fakturadetaljer[#Headers])), ROW(10:10)), MATCH($F$8, Fakturadetaljer[#Headers], 0)),\"\")","v":0},{"v":80,"d":"kr 80.00"}]
[null,{"$f":"IFERROR(INDEX(Fakturadetaljer[],SMALL(IF(Fakturadetaljer[Fakturanummer]=rngInvoice,ROW(Fakturadetaljer[])-ROW(Fakturadetaljer[#Headers])), ROW(11:11)), MATCH($B$8, Fakturadetaljer[#Headers], 0)),\"\")","v":"Z4577"},{"$f":"IFERROR(INDEX(Fakturadetaljer[],SMALL(IF(Fakturadetaljer[Fakturanummer]=rngInvoice,ROW(Fakturadetaljer[])-ROW(Fakturadetaljer[#Headers])), ROW(11:11)), MATCH($C$8, Fakturadetaljer[#Headers], 0)),\"\")","v":"Faktura 3-456-2 Data 11"},{"$f":"IFERROR(INDEX(Fakturadetaljer[],SMALL(IF(Fakturadetaljer[Fakturanummer]=rngInvoice,ROW(Fakturadetaljer[])-ROW(Fakturadetaljer[#Headers])), ROW(11:11)), MATCH($D$8, Fakturadetaljer[#Headers], 0)),\"\")","v":65},{"$f":"IFERROR(INDEX(Fakturadetaljer[],SMALL(IF(Fakturadetaljer[Fakturanummer]=rngInvoice,ROW(Fakturadetaljer[])-ROW(Fakturadetaljer[#Headers])), ROW(11:11)), MATCH($E$8, Fakturadetaljer[#Headers], 0)),\"\")","v":{"v":7,"d":"kr 7.00"}},{"$f":"IFERROR(INDEX(Fakturadetaljer[],SMALL(IF(Fakturadetaljer[Fakturanummer]=rngInvoice,ROW(Fakturadetaljer[])-ROW(Fakturadetaljer[#Headers])), ROW(11:11)), MATCH($F$8, Fakturadetaljer[#Headers], 0)),\"\")","v":0},{"v":455,"d":"kr 455.00"}]
[null,{"$f":"IFERROR(INDEX(Fakturadetaljer[],SMALL(IF(Fakturadetaljer[Fakturanummer]=rngInvoice,ROW(Fakturadetaljer[])-ROW(Fakturadetaljer[#Headers])), ROW(12:12)), MATCH($B$8, Fakturadetaljer[#Headers], 0)),\"\")","v":"Z4578"},{"$f":"IFERROR(INDEX(Fakturadetaljer[],SMALL(IF(Fakturadetaljer[Fakturanummer]=rngInvoice,ROW(Fakturadetaljer[])-ROW(Fakturadetaljer[#Headers])), ROW(12:12)), MATCH($C$8, Fakturadetaljer[#Headers], 0)),\"\")","v":"Faktura 3-456-2 Data 12"},{"$f":"IFERROR(INDEX(Fakturadetaljer[],SMALL(IF(Fakturadetaljer[Fakturanummer]=rngInvoice,ROW(Fakturadetaljer[])-ROW(Fakturadetaljer[#Headers])), ROW(12:12)), MATCH($D$8, Fakturadetaljer[#Headers], 0)),\"\")","v":44},{"$f":"IFERROR(INDEX(Fakturadetaljer[],SMALL(IF(Fakturadetaljer[Fakturanummer]=rngInvoice,ROW(Fakturadetaljer[])-ROW(Fakturadetaljer[#Headers])), ROW(12:12)), MATCH($E$8, Fakturadetaljer[#Headers], 0)),\"\")","v":{"v":1,"d":"kr 1.00"}},{"$f":"IFERROR(INDEX(Fakturadetaljer[],SMALL(IF(Fakturadetaljer[Fakturanummer]=rngInvoice,ROW(Fakturadetaljer[])-ROW(Fakturadetaljer[#Headers])), ROW(12:12)), MATCH($F$8, Fakturadetaljer[#Headers], 0)),\"\")","v":0},{"v":44,"d":"kr 44.00"}]
[null,{"$f":"IFERROR(INDEX(Fakturadetaljer[],SMALL(IF(Fakturadetaljer[Fakturanummer]=rngInvoice,ROW(Fakturadetaljer[])-ROW(Fakturadetaljer[#Headers])), ROW(13:13)), MATCH($B$8, Fakturadetaljer[#Headers], 0)),\"\")","v":""},{"$f":"IFERROR(INDEX(Fakturadetaljer[],SMALL(IF(Fakturadetaljer[Fakturanummer]=rngInvoice,ROW(Fakturadetaljer[])-ROW(Fakturadetaljer[#Headers])), ROW(13:13)), MATCH($C$8, Fakturadetaljer[#Headers], 0)),\"\")","v":""},{"$f":"IFERROR(INDEX(Fakturadetaljer[],SMALL(IF(Fakturadetaljer[Fakturanummer]=rngInvoice,ROW(Fakturadetaljer[])-ROW(Fakturadetaljer[#Headers])), ROW(13:13)), MATCH($D$8, Fakturadetaljer[#Headers], 0)),\"\")","v":""},{"$f":"IFERROR(INDEX(Fakturadetaljer[],SMALL(IF(Fakturadetaljer[Fakturanummer]=rngInvoice,ROW(Fakturadetaljer[])-ROW(Fakturadetaljer[#Headers])), ROW(13:13)), MATCH($E$8, Fakturadetaljer[#Headers], 0)),\"\")","v":""},{"$f":"IFERROR(INDEX(Fakturadetaljer[],SMALL(IF(Fakturadetaljer[Fakturanummer]=rngInvoice,ROW(Fakturadetaljer[])-ROW(Fakturadetaljer[#Headers])), ROW(13:13)), MATCH($F$8, Fakturadetaljer[#Headers], 0)),\"\")","v":""},""]
[null,{"$f":"IFERROR(INDEX(Fakturadetaljer[],SMALL(IF(Fakturadetaljer[Fakturanummer]=rngInvoice,ROW(Fakturadetaljer[])-ROW(Fakturadetaljer[#Headers])), ROW(14:14)), MATCH($B$8, Fakturadetaljer[#Headers], 0)),\"\")","v":""},{"$f":"IFERROR(INDEX(Fakturadetaljer[],SMALL(IF(Fakturadetaljer[Fakturanummer]=rngInvoice,ROW(Fakturadetaljer[])-ROW(Fakturadetaljer[#Headers])), ROW(14:14)), MATCH($C$8, Fakturadetaljer[#Headers], 0)),\"\")","v":""},{"$f":"IFERROR(INDEX(Fakturadetaljer[],SMALL(IF(Fakturadetaljer[Fakturanummer]=rngInvoice,ROW(Fakturadetaljer[])-ROW(Fakturadetaljer[#Headers])), ROW(14:14)), MATCH($D$8, Fakturadetaljer[#Headers], 0)),\"\")","v":""},{"$f":"IFERROR(INDEX(Fakturadetaljer[],SMALL(IF(Fakturadetaljer[Fakturanummer]=rngInvoice,ROW(Fakturadetaljer[])-ROW(Fakturadetaljer[#Headers])), ROW(14:14)), MATCH($E$8, Fakturadetaljer[#Headers], 0)),\"\")","v":""},{"$f":"IFERROR(INDEX(Fakturadetaljer[],SMALL(IF(Fakturadetaljer[Fakturanummer]=rngInvoice,ROW(Fakturadetaljer[])-ROW(Fakturadetaljer[#Headers])), ROW(14:14)), MATCH($F$8, Fakturadetaljer[#Headers], 0)),\"\")","v":""},""]
[null,{"$f":"IFERROR(INDEX(Fakturadetaljer[],SMALL(IF(Fakturadetaljer[Fakturanummer]=rngInvoice,ROW(Fakturadetaljer[])-ROW(Fakturadetaljer[#Headers])), ROW(15:15)), MATCH($B$8, Fakturadetaljer[#Headers], 0)),\"\")","v":""},{"$f":"IFERROR(INDEX(Fakturadetaljer[],SMALL(IF(Fakturadetaljer[Fakturanummer]=rngInvoice,ROW(Fakturadetaljer[])-ROW(Fakturadetaljer[#Headers])), ROW(15:15)), MATCH($C$8, Fakturadetaljer[#Headers], 0)),\"\")","v":""},{"$f":"IFERROR(INDEX(Fakturadetaljer[],SMALL(IF(Fakturadetaljer[Fakturanummer]=rngInvoice,ROW(Fakturadetaljer[])-ROW(Fakturadetaljer[#Headers])), ROW(15:15)), MATCH($D$8, Fakturadetaljer[#Headers], 0)),\"\")","v":""},{"$f":"IFERROR(INDEX(Fakturadetaljer[],SMALL(IF(Fakturadetaljer[Fakturanummer]=rngInvoice,ROW(Fakturadetaljer[])-ROW(Fakturadetaljer[#Headers])), ROW(15:15)), MATCH($E$8, Fakturadetaljer[#Headers], 0)),\"\")","v":""},{"$f":"IFERROR(INDEX(Fakturadetaljer[],SMALL(IF(Fakturadetaljer[Fakturanummer]=rngInvoice,ROW(Fakturadetaljer[])-ROW(Fakturadetaljer[#Headers])), ROW(15:15)), MATCH($F$8, Fakturadetaljer[#Headers], 0)),\"\")","v":""},""]
[null,{"$f":"IFERROR(INDEX(Fakturadetaljer[],SMALL(IF(Fakturadetaljer[Fakturanummer]=rngInvoice,ROW(Fakturadetaljer[])-ROW(Fakturadetaljer[#Headers])), ROW(16:16)), MATCH($B$8, Fakturadetaljer[#Headers], 0)),\"\")","v":""},{"$f":"IFERROR(INDEX(Fakturadetaljer[],SMALL(IF(Fakturadetaljer[Fakturanummer]=rngInvoice,ROW(Fakturadetaljer[])-ROW(Fakturadetaljer[#Headers])), ROW(16:16)), MATCH($C$8, Fakturadetaljer[#Headers], 0)),\"\")","v":""},{"$f":"IFERROR(INDEX(Fakturadetaljer[],SMALL(IF(Fakturadetaljer[Fakturanummer]=rngInvoice,ROW(Fakturadetaljer[])-ROW(Fakturadetaljer[#Headers])), ROW(16:16)), MATCH($D$8, Fakturadetaljer[#Headers], 0)),\"\")","v":""},{"$f":"IFERROR(INDEX(Fakturadetaljer[],SMALL(IF(Fakturadetaljer[Fakturanummer]=rngInvoice,ROW(Fakturadetaljer[])-ROW(Fakturadetaljer[#Headers])), ROW(16:16)), MATCH($E$8, Fakturadetaljer[#Headers], 0)),\"\")","v":""},{"$f":"IFERROR(INDEX(Fakturadetaljer[],SMALL(IF(Fakturadetaljer[Fakturanummer]=rngInvoice,ROW(Fakturadetaljer[])-ROW(Fakturadetaljer[#Headers])), ROW(16:16)), MATCH($F$8, Fakturadetaljer[#Headers], 0)),\"\")","v":""},""]
[null,{"$f":"IFERROR(INDEX(Fakturadetaljer[],SMALL(IF(Fakturadetaljer[Fakturanummer]=rngInvoice,ROW(Fakturadetaljer[])-ROW(Fakturadetaljer[#Headers])), ROW(17:17)), MATCH($B$8, Fakturadetaljer[#Headers], 0)),\"\")","v":""},{"$f":"IFERROR(INDEX(Fakturadetaljer[],SMALL(IF(Fakturadetaljer[Fakturanummer]=rngInvoice,ROW(Fakturadetaljer[])-ROW(Fakturadetaljer[#Headers])), ROW(17:17)), MATCH($C$8, Fakturadetaljer[#Headers], 0)),\"\")","v":""},{"$f":"IFERROR(INDEX(Fakturadetaljer[],SMALL(IF(Fakturadetaljer[Fakturanummer]=rngInvoice,ROW(Fakturadetaljer[])-ROW(Fakturadetaljer[#Headers])), ROW(17:17)), MATCH($D$8, Fakturadetaljer[#Headers], 0)),\"\")","v":""},{"$f":"IFERROR(INDEX(Fakturadetaljer[],SMALL(IF(Fakturadetaljer[Fakturanummer]=rngInvoice,ROW(Fakturadetaljer[])-ROW(Fakturadetaljer[#Headers])), ROW(17:17)), MATCH($E$8, Fakturadetaljer[#Headers], 0)),\"\")","v":""},{"$f":"IFERROR(INDEX(Fakturadetaljer[],SMALL(IF(Fakturadetaljer[Fakturanummer]=rngInvoice,ROW(Fakturadetaljer[])-ROW(Fakturadetaljer[#Headers])), ROW(17:17)), MATCH($F$8, Fakturadetaljer[#Headers], 0)),\"\")","v":""},""]
[null,{"$f":"IFERROR(INDEX(Fakturadetaljer[],SMALL(IF(Fakturadetaljer[Fakturanummer]=rngInvoice,ROW(Fakturadetaljer[])-ROW(Fakturadetaljer[#Headers])), ROW(18:18)), MATCH($B$8, Fakturadetaljer[#Headers], 0)),\"\")","v":""},{"$f":"IFERROR(INDEX(Fakturadetaljer[],SMALL(IF(Fakturadetaljer[Fakturanummer]=rngInvoice,ROW(Fakturadetaljer[])-ROW(Fakturadetaljer[#Headers])), ROW(18:18)), MATCH($C$8, Fakturadetaljer[#Headers], 0)),\"\")","v":""},{"$f":"IFERROR(INDEX(Fakturadetaljer[],SMALL(IF(Fakturadetaljer[Fakturanummer]=rngInvoice,ROW(Fakturadetaljer[])-ROW(Fakturadetaljer[#Headers])), ROW(18:18)), MATCH($D$8, Fakturadetaljer[#Headers], 0)),\"\")","v":""},{"$f":"IFERROR(INDEX(Fakturadetaljer[],SMALL(IF(Fakturadetaljer[Fakturanummer]=rngInvoice,ROW(Fakturadetaljer[])-ROW(Fakturadetaljer[#Headers])), ROW(18:18)), MATCH($E$8, Fakturadetaljer[#Headers], 0)),\"\")","v":""},{"$f":"IFERROR(INDEX(Fakturadetaljer[],SMALL(IF(Fakturadetaljer[Fakturanummer]=rngInvoice,ROW(Fakturadetaljer[])-ROW(Fakturadetaljer[#Headers])), ROW(18:18)), MATCH($F$8, Fakturadetaljer[#Headers], 0)),\"\")","v":""},""]
[null,{"$f":"IFERROR(INDEX(Fakturadetaljer[],SMALL(IF(Fakturadetaljer[Fakturanummer]=rngInvoice,ROW(Fakturadetaljer[])-ROW(Fakturadetaljer[#Headers])), ROW(19:19)), MATCH($B$8, Fakturadetaljer[#Headers], 0)),\"\")","v":""},{"$f":"IFERROR(INDEX(Fakturadetaljer[],SMALL(IF(Fakturadetaljer[Fakturanummer]=rngInvoice,ROW(Fakturadetaljer[])-ROW(Fakturadetaljer[#Headers])), ROW(19:19)), MATCH($C$8, Fakturadetaljer[#Headers], 0)),\"\")","v":""},{"$f":"IFERROR(INDEX(Fakturadetaljer[],SMALL(IF(Fakturadetaljer[Fakturanummer]=rngInvoice,ROW(Fakturadetaljer[])-ROW(Fakturadetaljer[#Headers])), ROW(19:19)), MATCH($D$8, Fakturadetaljer[#Headers], 0)),\"\")","v":""},{"$f":"IFERROR(INDEX(Fakturadetaljer[],SMALL(IF(Fakturadetaljer[Fakturanummer]=rngInvoice,ROW(Fakturadetaljer[])-ROW(Fakturadetaljer[#Headers])), ROW(19:19)), MATCH($E$8, Fakturadetaljer[#Headers], 0)),\"\")","v":""},{"$f":"IFERROR(INDEX(Fakturadetaljer[],SMALL(IF(Fakturadetaljer[Fakturanummer]=rngInvoice,ROW(Fakturadetaljer[])-ROW(Fakturadetaljer[#Headers])), ROW(19:19)), MATCH($F$8, Fakturadetaljer[#Headers], 0)),\"\")","v":""},""]
[null,{"$f":"IFERROR(INDEX(Fakturadetaljer[],SMALL(IF(Fakturadetaljer[Fakturanummer]=rngInvoice,ROW(Fakturadetaljer[])-ROW(Fakturadetaljer[#Headers])), ROW(20:20)), MATCH($B$8, Fakturadetaljer[#Headers], 0)),\"\")","v":""},{"$f":"IFERROR(INDEX(Fakturadetaljer[],SMALL(IF(Fakturadetaljer[Fakturanummer]=rngInvoice,ROW(Fakturadetaljer[])-ROW(Fakturadetaljer[#Headers])), ROW(20:20)), MATCH($C$8, Fakturadetaljer[#Headers], 0)),\"\")","v":""},{"$f":"IFERROR(INDEX(Fakturadetaljer[],SMALL(IF(Fakturadetaljer[Fakturanummer]=rngInvoice,ROW(Fakturadetaljer[])-ROW(Fakturadetaljer[#Headers])), ROW(20:20)), MATCH($D$8, Fakturadetaljer[#Headers], 0)),\"\")","v":""},{"$f":"IFERROR(INDEX(Fakturadetaljer[],SMALL(IF(Fakturadetaljer[Fakturanummer]=rngInvoice,ROW(Fakturadetaljer[])-ROW(Fakturadetaljer[#Headers])), ROW(20:20)), MATCH($E$8, Fakturadetaljer[#Headers], 0)),\"\")","v":""},{"$f":"IFERROR(INDEX(Fakturadetaljer[],SMALL(IF(Fakturadetaljer[Fakturanummer]=rngInvoice,ROW(Fakturadetaljer[])-ROW(Fakturadetaljer[#Headers])), ROW(20:20)), MATCH($F$8, Fakturadetaljer[#Headers], 0)),\"\")","v":""},""]
[null,{"$f":"IFERROR(INDEX(Fakturadetaljer[],SMALL(IF(Fakturadetaljer[Fakturanummer]=rngInvoice,ROW(Fakturadetaljer[])-ROW(Fakturadetaljer[#Headers])), ROW(21:21)), MATCH($B$8, Fakturadetaljer[#Headers], 0)),\"\")","v":""},{"$f":"IFERROR(INDEX(Fakturadetaljer[],SMALL(IF(Fakturadetaljer[Fakturanummer]=rngInvoice,ROW(Fakturadetaljer[])-ROW(Fakturadetaljer[#Headers])), ROW(21:21)), MATCH($C$8, Fakturadetaljer[#Headers], 0)),\"\")","v":""},{"$f":"IFERROR(INDEX(Fakturadetaljer[],SMALL(IF(Fakturadetaljer[Fakturanummer]=rngInvoice,ROW(Fakturadetaljer[])-ROW(Fakturadetaljer[#Headers])), ROW(21:21)), MATCH($D$8, Fakturadetaljer[#Headers], 0)),\"\")","v":""},{"$f":"IFERROR(INDEX(Fakturadetaljer[],SMALL(IF(Fakturadetaljer[Fakturanummer]=rngInvoice,ROW(Fakturadetaljer[])-ROW(Fakturadetaljer[#Headers])), ROW(21:21)), MATCH($E$8, Fakturadetaljer[#Headers], 0)),\"\")","v":""},{"$f":"IFERROR(INDEX(Fakturadetaljer[],SMALL(IF(Fakturadetaljer[Fakturanummer]=rngInvoice,ROW(Fakturadetaljer[])-ROW(Fakturadetaljer[#Headers])), ROW(21:21)), MATCH($F$8, Fakturadetaljer[#Headers], 0)),\"\")","v":""},""]
[null,{"$f":"IFERROR(INDEX(Fakturadetaljer[],SMALL(IF(Fakturadetaljer[Fakturanummer]=rngInvoice,ROW(Fakturadetaljer[])-ROW(Fakturadetaljer[#Headers])), ROW(22:22)), MATCH($B$8, Fakturadetaljer[#Headers], 0)),\"\")","v":""},{"$f":"IFERROR(INDEX(Fakturadetaljer[],SMALL(IF(Fakturadetaljer[Fakturanummer]=rngInvoice,ROW(Fakturadetaljer[])-ROW(Fakturadetaljer[#Headers])), ROW(22:22)), MATCH($C$8, Fakturadetaljer[#Headers], 0)),\"\")","v":""},{"$f":"IFERROR(INDEX(Fakturadetaljer[],SMALL(IF(Fakturadetaljer[Fakturanummer]=rngInvoice,ROW(Fakturadetaljer[])-ROW(Fakturadetaljer[#Headers])), ROW(22:22)), MATCH($D$8, Fakturadetaljer[#Headers], 0)),\"\")","v":""},{"$f":"IFERROR(INDEX(Fakturadetaljer[],SMALL(IF(Fakturadetaljer[Fakturanummer]=rngInvoice,ROW(Fakturadetaljer[])-ROW(Fakturadetaljer[#Headers])), ROW(22:22)), MATCH($E$8, Fakturadetaljer[#Headers], 0)),\"\")","v":""},{"$f":"IFERROR(INDEX(Fakturadetaljer[],SMALL(IF(Fakturadetaljer[Fakturanummer]=rngInvoice,ROW(Fakturadetaljer[])-ROW(Fakturadetaljer[#Headers])), ROW(22:22)), MATCH($F$8, Fakturadetaljer[#Headers], 0)),\"\")","v":""},""]
[null,{"$f":"IFERROR(INDEX(Fakturadetaljer[],SMALL(IF(Fakturadetaljer[Fakturanummer]=rngInvoice,ROW(Fakturadetaljer[])-ROW(Fakturadetaljer[#Headers])), ROW(23:23)), MATCH($B$8, Fakturadetaljer[#Headers], 0)),\"\")","v":""},{"$f":"IFERROR(INDEX(Fakturadetaljer[],SMALL(IF(Fakturadetaljer[Fakturanummer]=rngInvoice,ROW(Fakturadetaljer[])-ROW(Fakturadetaljer[#Headers])), ROW(23:23)), MATCH($C$8, Fakturadetaljer[#Headers], 0)),\"\")","v":""},{"$f":"IFERROR(INDEX(Fakturadetaljer[],SMALL(IF(Fakturadetaljer[Fakturanummer]=rngInvoice,ROW(Fakturadetaljer[])-ROW(Fakturadetaljer[#Headers])), ROW(23:23)), MATCH($D$8, Fakturadetaljer[#Headers], 0)),\"\")","v":""},{"$f":"IFERROR(INDEX(Fakturadetaljer[],SMALL(IF(Fakturadetaljer[Fakturanummer]=rngInvoice,ROW(Fakturadetaljer[])-ROW(Fakturadetaljer[#Headers])), ROW(23:23)), MATCH($E$8, Fakturadetaljer[#Headers], 0)),\"\")","v":""},{"$f":"IFERROR(INDEX(Fakturadetaljer[],SMALL(IF(Fakturadetaljer[Fakturanummer]=rngInvoice,ROW(Fakturadetaljer[])-ROW(Fakturadetaljer[#Headers])), ROW(23:23)), MATCH($F$8, Fakturadetaljer[#Headers], 0)),\"\")","v":""},""]
[null,{"$f":"IFERROR(INDEX(Fakturadetaljer[],SMALL(IF(Fakturadetaljer[Fakturanummer]=rngInvoice,ROW(Fakturadetaljer[])-ROW(Fakturadetaljer[#Headers])), ROW(24:24)), MATCH($B$8, Fakturadetaljer[#Headers], 0)),\"\")","v":""},{"$f":"IFERROR(INDEX(Fakturadetaljer[],SMALL(IF(Fakturadetaljer[Fakturanummer]=rngInvoice,ROW(Fakturadetaljer[])-ROW(Fakturadetaljer[#Headers])), ROW(24:24)), MATCH($C$8, Fakturadetaljer[#Headers], 0)),\"\")","v":""},{"$f":"IFERROR(INDEX(Fakturadetaljer[],SMALL(IF(Fakturadetaljer[Fakturanummer]=rngInvoice,ROW(Fakturadetaljer[])-ROW(Fakturadetaljer[#Headers])), ROW(24:24)), MATCH($D$8, Fakturadetaljer[#Headers], 0)),\"\")","v":""},{"$f":"IFERROR(INDEX(Fakturadetaljer[],SMALL(IF(Fakturadetaljer[Fakturanummer]=rngInvoice,ROW(Fakturadetaljer[])-ROW(Fakturadetaljer[#Headers])), ROW(24:24)), MATCH($E$8, Fakturadetaljer[#Headers], 0)),\"\")","v":""},{"$f":"IFERROR(INDEX(Fakturadetaljer[],SMALL(IF(Fakturadetaljer[Fakturanummer]=rngInvoice,ROW(Fakturadetaljer[])-ROW(Fakturadetaljer[#Headers])), ROW(24:24)), MATCH($F$8, Fakturadetaljer[#Headers], 0)),\"\")","v":""},""]
[null,{"$f":"IFERROR(INDEX(Fakturadetaljer[],SMALL(IF(Fakturadetaljer[Fakturanummer]=rngInvoice,ROW(Fakturadetaljer[])-ROW(Fakturadetaljer[#Headers])), ROW(25:25)), MATCH($B$8, Fakturadetaljer[#Headers], 0)),\"\")","v":""},{"$f":"IFERROR(INDEX(Fakturadetaljer[],SMALL(IF(Fakturadetaljer[Fakturanummer]=rngInvoice,ROW(Fakturadetaljer[])-ROW(Fakturadetaljer[#Headers])), ROW(25:25)), MATCH($C$8, Fakturadetaljer[#Headers], 0)),\"\")","v":""},{"$f":"IFERROR(INDEX(Fakturadetaljer[],SMALL(IF(Fakturadetaljer[Fakturanummer]=rngInvoice,ROW(Fakturadetaljer[])-ROW(Fakturadetaljer[#Headers])), ROW(25:25)), MATCH($D$8, Fakturadetaljer[#Headers], 0)),\"\")","v":""},{"$f":"IFERROR(INDEX(Fakturadetaljer[],SMALL(IF(Fakturadetaljer[Fakturanummer]=rngInvoice,ROW(Fakturadetaljer[])-ROW(Fakturadetaljer[#Headers])), ROW(25:25)), MATCH($E$8, Fakturadetaljer[#Headers], 0)),\"\")","v":""},{"$f":"IFERROR(INDEX(Fakturadetaljer[],SMALL(IF(Fakturadetaljer[Fakturanummer]=rngInvoice,ROW(Fakturadetaljer[])-ROW(Fakturadetaljer[#Headers])), ROW(25:25)), MATCH($F$8, Fakturadetaljer[#Headers], 0)),\"\")","v":""},""]
[{"$nulls":5},"Delsum faktura",{"$f":"SUM(ProjectInvoice[Pris])","v":{"v":2014,"d":"kr 2,014.00"}}]
[{"$nulls":5},"Avgiftssats",{"$f":"VLOOKUP(rngInvoice,InvoicesMain[],5)","v":{"v":0.0875,"d":"8.75%"}}]
[{"$nulls":5},"Merverdiavgift",{"$f":"G34*G35","v":{"v":176.225,"d":"kr 176.23"}}]
[{"$nulls":5},"Annet",{"$f":"VLOOKUP(rngInvoice,InvoicesMain[],6)","v":0}]
[null,{"$f":"\"Alle sjekker utstedes til \"&Firmanavn&\".\"","v":"Alle sjekker utstedes til Firmanavn."},{"$nulls":3},"Mottatt forskudd",{"$f":"VLOOKUP(rngInvoice,InvoicesMain[],7)","v":0}]
[null,"Betales innen <#> dager. Forfalte fakturaer ilegges et gebyr på <#> % per måned.",{"$nulls":3},"TOTALT",{"$f":"(G34+G36+G37)-G38","v":{"v":2190.225,"d":"kr 2,190.23"}}]

{"sheet":"Kunder","index":1,"n_rows":6,"n_cols":12,"rows_kept":6}
[]
[null,null,"Kunder"]
[null,"Søk","Firmanummer","Firmanavn","Kontaktnavn","Adresse","Poststed","Delstat","Postnummer","Telefon","E-post","Faks"]
[null,{"$f":"C4& \" - \"&D4","v":"1 - Tailspin Toys "},1,"Tailspin Toys ","Robert Lyon","345 Cherry Street","Albany","SD","123456","432-555-0178","noen@eksempel.com","432-555-0187"]
[null,"2 - Contoso, Ltd",2,"Contoso, Ltd","Sanjay Patel","567 Walnut Lane","Moline","MO","098765","432-555-0189","noen@eksempel.com","432-555-0123"]
[null,"Totaler",{"$f":"\"Totalt antall kunder: \"&SUBTOTAL(103,CustomerList[Firmanummer])","v":"Totalt antall kunder: 2"}]

{"sheet":"Fakturaer – Hoved","index":2,"n_rows":6,"n_cols":11,"rows_kept":6}
[]
[null,"Fakturaer"]
[null,"Fakturanummer","Firma","Fakturadato","Prosjektbeskrivelse","Avgiftssats","Annet","Forskudd","Totalt antall detaljer","Fakturabeløp","Notater"]
[null,"3-456-1","1 - Tailspin Toys ",{"$f":"TODAY()","v":"2019-08-01"},"Prosjekt 1",{"v":0.0875,"d":"8.75%"},{"v":100,"d":"kr 100.00"},{"v":100,"d":"kr 100.00"},{"$f":"SUMIF(Fakturadetaljer[Fakturanummer],\"=\"&InvoicesMain[[#This Row],[Fakturanummer]],Fakturadetaljer[Totalt])","v":{"v":5200,"d":"kr 5,200.00"}},{"$f":"(InvoicesMain[[#This Row],[Totalt antall detaljer]]*(1+InvoicesMain[[#This Row],[Avgiftssats]]))+InvoicesMain[[#This Row],[Annet]]-InvoicesMain[[#This Row],[Forskudd]]","v":{"v":5654.999999999999,"d":"kr 5,655.00"}}]
[null,"3-456-2","2 - Contoso, Ltd",{"$f":"TODAY()+10","v":"2019-08-11"},"Prosjekt 2",{"v":0.0875,"d":"8.75%"},null,null,{"$f":"SUMIF(Fakturadetaljer[Fakturanummer],\"=\"&InvoicesMain[[#This Row],[Fakturanummer]],Fakturadetaljer[Totalt])","v":{"v":2014,"d":"kr 2,014.00"}},{"$f":"(InvoicesMain[[#This Row],[Totalt antall detaljer]]*(1+InvoicesMain[[#This Row],[Avgiftssats]]))+InvoicesMain[[#This Row],[Annet]]-InvoicesMain[[#This Row],[Forskudd]]","v":{"v":2190.225,"d":"kr 2,190.23"}}]
[null,"Totaler",{"$f":"\"Totalt antall fakturaer: \"&SUBTOTAL(103,InvoicesMain[Fakturanummer])","v":"Totalt antall fakturaer: 2"},{"$nulls":3},{"$f":"SUBTOTAL(109,InvoicesMain[Annet])","v":{"v":100,"d":"kr 100.00"}},{"$f":"SUBTOTAL(109,InvoicesMain[Forskudd])","v":{"v":100,"d":"kr 100.00"}},{"$f":"SUBTOTAL(109,InvoicesMain[Totalt antall detaljer])","v":{"v":7214,"d":"kr 7,214.00"}},{"$f":"SUBTOTAL(109,InvoicesMain[Fakturabeløp])","v":{"v":7845.2249999999985,"d":"kr 7,845.23"}}]

{"sheet":"Fakturadetaljer","index":3,"n_rows":40,"n_cols":8,"rows_kept":40}
[]
[null,"Fakturadetaljer"]
[null,"Beskrivelse","Fakturanummer","Varenummer","Mengde","Enhetspris","Rabatt","Totalt"]
[null,"Faktura 3-456-1 Data 1","3-456-1",1,1,{"v":1,"d":"kr 1.00"},{"v":1,"d":"kr 1.00"},{"$f":"(Fakturadetaljer[[#This Row],[Mengde]]*Fakturadetaljer[[#This Row],[Enhetspris]])-Fakturadetaljer[[#This Row],[Rabatt]]","v":{"v":0,"d":"kr 0.00"}}]
[null,"Faktura 3-456-1 Data 2","3-456-1",2,2,{"v":2,"d":"kr 2.00"},{"v":2,"d":"kr 2.00"},{"$f":"(Fakturadetaljer[[#This Row],[Mengde]]*Fakturadetaljer[[#This Row],[Enhetspris]])-Fakturadetaljer[[#This Row],[Rabatt]]","v":{"v":2,"d":"kr 2.00"}}]
[null,"Faktura 3-456-1 Data 3","3-456-1",3,3,{"v":3,"d":"kr 3.00"},{"v":3,"d":"kr 3.00"},{"$f":"(Fakturadetaljer[[#This Row],[Mengde]]*Fakturadetaljer[[#This Row],[Enhetspris]])-Fakturadetaljer[[#This Row],[Rabatt]]","v":{"v":6,"d":"kr 6.00"}}]
[null,"Faktura 3-456-1 Data 4","3-456-1",4,4,{"v":4,"d":"kr 4.00"},{"v":4,"d":"kr 4.00"},{"$f":"(Fakturadetaljer[[#This Row],[Mengde]]*Fakturadetaljer[[#This Row],[Enhetspris]])-Fakturadetaljer[[#This Row],[Rabatt]]","v":{"v":12,"d":"kr 12.00"}}]
[null,"Faktura 3-456-1 Data 5","3-456-1",5,5,{"v":5,"d":"kr 5.00"},{"v":5,"d":"kr 5.00"},{"$f":"(Fakturadetaljer[[#This Row],[Mengde]]*Fakturadetaljer[[#This Row],[Enhetspris]])-Fakturadetaljer[[#This Row],[Rabatt]]","v":{"v":20,"d":"kr 20.00"}}]
[null,"Faktura 3-456-1 Data 6","3-456-1",6,6,{"v":6,"d":"kr 6.00"},{"v":6,"d":"kr 6.00"},{"$f":"(Fakturadetaljer[[#This Row],[Mengde]]*Fakturadetaljer[[#This Row],[Enhetspris]])-Fakturadetaljer[[#This Row],[Rabatt]]","v":{"v":30,"d":"kr 30.00"}}]
[null,"Faktura 3-456-1 Data 7","3-456-1",7,7,{"v":7,"d":"kr 7.00"},{"v":7,"d":"kr 7.00"},{"$f":"(Fakturadetaljer[[#This Row],[Mengde]]*Fakturadetaljer[[#This Row],[Enhetspris]])-Fakturadetaljer[[#This Row],[Rabatt]]","v":{"v":42,"d":"kr 42.00"}}]
[null,"Faktura 3-456-1 Data 8","3-456-1",8,8,{"v":8,"d":"kr 8.00"},{"v":8,"d":"kr 8.00"},{"$f":"(Fakturadetaljer[[#This Row],[Mengde]]*Fakturadetaljer[[#This Row],[Enhetspris]])-Fakturadetaljer[[#This Row],[Rabatt]]","v":{"v":56,"d":"kr 56.00"}}]
[null,"Faktura 3-456-1 Data 9","3-456-1",9,9,{"v":9,"d":"kr 9.00"},{"v":9,"d":"kr 9.00"},{"$f":"(Fakturadetaljer[[#This Row],[Mengde]]*Fakturadetaljer[[#This Row],[Enhetspris]])-Fakturadetaljer[[#This Row],[Rabatt]]","v":{"v":72,"d":"kr 72.00"}}]
[null,"Faktura 3-456-1 Data 10","3-456-1",10,10,{"v":10,"d":"kr 10.00"},{"v":10,"d":"kr 10.00"},{"$f":"(Fakturadetaljer[[#This Row],[Mengde]]*Fakturadetaljer[[#This Row],[Enhetspris]])-Fakturadetaljer[[#This Row],[Rabatt]]","v":{"v":90,"d":"kr 90.00"}}]
[null,"Faktura 3-456-1 Data 11","3-456-1",11,11,{"v":11,"d":"kr 11.00"},{"v":11,"d":"kr 11.00"},{"$f":"(Fakturadetaljer[[#This Row],[Mengde]]*Fakturadetaljer[[#This Row],[Enhetspris]])-Fakturadetaljer[[#This Row],[Rabatt]]","v":{"v":110,"d":"kr 110.00"}}]
[null,"Faktura 3-456-1 Data 12","3-456-1",12,12,{"v":12,"d":"kr 12.00"},{"v":12,"d":"kr 12.00"},{"$f":"(Fakturadetaljer[[#This Row],[Mengde]]*Fakturadetaljer[[#This Row],[Enhetspris]])-Fakturadetaljer[[#This Row],[Rabatt]]","v":{"v":132,"d":"kr 132.00"}}]
[null,"Faktura 3-456-1 Data 13","3-456-1",13,13,{"v":13,"d":"kr 13.00"},{"v":13,"d":"kr 13.00"},{"$f":"(Fakturadetaljer[[#This Row],[Mengde]]*Fakturadetaljer[[#This Row],[Enhetspris]])-Fakturadetaljer[[#This Row],[Rabatt]]","v":{"v":156,"d":"kr 156.00"}}]
[null,"Faktura 3-456-1 Data 14","3-456-1",14,14,{"v":14,"d":"kr 14.00"},{"v":14,"d":"kr 14.00"},{"$f":"(Fakturadetaljer[[#This Row],[Mengde]]*Fakturadetaljer[[#This Row],[Enhetspris]])-Fakturadetaljer[[#This Row],[Rabatt]]","v":{"v":182,"d":"kr 182.00"}}]
[null,"Faktura 3-456-1 Data 15","3-456-1",15,15,{"v":15,"d":"kr 15.00"},{"v":15,"d":"kr 15.00"},{"$f":"(Fakturadetaljer[[#This Row],[Mengde]]*Fakturadetaljer[[#This Row],[Enhetspris]])-Fakturadetaljer[[#This Row],[Rabatt]]","v":{"v":210,"d":"kr 210.00"}}]
[null,"Faktura 3-456-1 Data 16","3-456-1",16,16,{"v":16,"d":"kr 16.00"},{"v":16,"d":"kr 16.00"},{"$f":"(Fakturadetaljer[[#This Row],[Mengde]]*Fakturadetaljer[[#This Row],[Enhetspris]])-Fakturadetaljer[[#This Row],[Rabatt]]","v":{"v":240,"d":"kr 240.00"}}]
[null,"Faktura 3-456-1 Data 17","3-456-1",17,17,{"v":17,"d":"kr 17.00"},{"v":17,"d":"kr 17.00"},{"$f":"(Fakturadetaljer[[#This Row],[Mengde]]*Fakturadetaljer[[#This Row],[Enhetspris]])-Fakturadetaljer[[#This Row],[Rabatt]]","v":{"v":272,"d":"kr 272.00"}}]
[null,"Faktura 3-456-1 Data 18","3-456-1",18,18,{"v":18,"d":"kr 18.00"},{"v":18,"d":"kr 18.00"},{"$f":"(Fakturadetaljer[[#This Row],[Mengde]]*Fakturadetaljer[[#This Row],[Enhetspris]])-Fakturadetaljer[[#This Row],[Rabatt]]","v":{"v":306,"d":"kr 306.00"}}]
[null,"Faktura 3-456-1 Data 19","3-456-1",19,19,{"v":19,"d":"kr 19.00"},{"v":19,"d":"kr 19.00"},{"$f":"(Fakturadetaljer[[#This Row],[Mengde]]*Fakturadetaljer[[#This Row],[Enhetspris]])-Fakturadetaljer[[#This Row],[Rabatt]]","v":{"v":342,"d":"kr 342.00"}}]
[null,"Faktura 3-456-1 Data 20","3-456-1",20,20,{"v":20,"d":"kr 20.00"},{"v":20,"d":"kr 20.00"},{"$f":"(Fakturadetaljer[[#This Row],[Mengde]]*Fakturadetaljer[[#This Row],[Enhetspris]])-Fakturadetaljer[[#This Row],[Rabatt]]","v":{"v":380,"d":"kr 380.00"}}]
[null,"Faktura 3-456-1 Data 21","3-456-1",21,21,{"v":21,"d":"kr 21.00"},{"v":21,"d":"kr 21.00"},{"$f":"(Fakturadetaljer[[#This Row],[Mengde]]*Fakturadetaljer[[#This Row],[Enhetspris]])-Fakturadetaljer[[#This Row],[Rabatt]]","v":{"v":420,"d":"kr 420.00"}}]
[null,"Faktura 3-456-1 Data 22","3-456-1",22,22,{"v":22,"d":"kr 22.00"},{"v":22,"d":"kr 22.00"},{"$f":"(Fakturadetaljer[[#This Row],[Mengde]]*Fakturadetaljer[[#This Row],[Enhetspris]])-Fakturadetaljer[[#This Row],[Rabatt]]","v":{"v":462,"d":"kr 462.00"}}]
[null,"Faktura 3-456-1 Data 23","3-456-1",23,23,{"v":23,"d":"kr 23.00"},{"v":23,"d":"kr 23.00"},{"$f":"(Fakturadetaljer[[#This Row],[Mengde]]*Fakturadetaljer[[#This Row],[Enhetspris]])-Fakturadetaljer[[#This Row],[Rabatt]]","v":{"v":506,"d":"kr 506.00"}}]
[null,"Faktura 3-456-1 Data 24","3-456-1",24,24,{"v":24,"d":"kr 24.00"},{"v":24,"d":"kr 24.00"},{"$f":"(Fakturadetaljer[[#This Row],[Mengde]]*Fakturadetaljer[[#This Row],[Enhetspris]])-Fakturadetaljer[[#This Row],[Rabatt]]","v":{"v":552,"d":"kr 552.00"}}]
[null,"Faktura 3-456-1 Data 25","3-456-1",25,25,{"v":25,"d":"kr 25.00"},{"v":25,"d":"kr 25.00"},{"$f":"(Fakturadetaljer[[#This Row],[Mengde]]*Fakturadetaljer[[#This Row],[Enhetspris]])-Fakturadetaljer[[#This Row],[Rabatt]]","v":{"v":600,"d":"kr 600.00"}}]
[null,"Faktura 3-456-2 Data 1","3-456-2","Z4567",39,{"v":5,"d":"kr 5.00"},null,{"$f":"(Fakturadetaljer[[#This Row],[Mengde]]*Fakturadetaljer[[#This Row],[Enhetspris]])-Fakturadetaljer[[#This Row],[Rabatt]]","v":{"v":195,"d":"kr 195.00"}}]
[null,"Faktura 3-456-2 Data 2","3-456-2","Z4568",40,{"v":4,"d":"kr 4.00"},{"v":5,"d":"kr 5.00"},{"$f":"(Fakturadetaljer[[#This Row],[Mengde]]*Fakturadetaljer[[#This Row],[Enhetspris]])-Fakturadetaljer[[#This Row],[Rabatt]]","v":{"v":155,"d":"kr 155.00"}}]
[null,"Faktura 3-456-2 Data 3","3-456-2","Z4569",30,{"v":6,"d":"kr 6.00"},{"v":7,"d":"kr 7.00"},{"$f":"(Fakturadetaljer[[#This Row],[Mengde]]*Fakturadetaljer[[#This Row],[Enhetspris]])-Fakturadetaljer[[#This Row],[Rabatt]]","v":{"v":173,"d":"kr 173.00"}}]
[null,"Faktura 3-456-2 Data 4","3-456-2","Z4570",40,{"v":7,"d":"kr 7.00"},null,{"$f":"(Fakturadetaljer[[#This Row],[Mengde]]*Fakturadetaljer[[#This Row],[Enhetspris]])-Fakturadetaljer[[#This Row],[Rabatt]]","v":{"v":280,"d":"kr 280.00"}}]
[null,"Faktura 3-456-2 Data 5","3-456-2","Z4571",10,{"v":4,"d":"kr 4.00"},null,{"$f":"(Fakturadetaljer[[#This Row],[Mengde]]*Fakturadetaljer[[#This Row],[Enhetspris]])-Fakturadetaljer[[#This Row],[Rabatt]]","v":{"v":40,"d":"kr 40.00"}}]
[null,"Faktura 3-456-2 Data 6","3-456-2","Z4572",5,{"v":8,"d":"kr 8.00"},null,{"$f":"(Fakturadetaljer[[#This Row],[Mengde]]*Fakturadetaljer[[#This Row],[Enhetspris]])-Fakturadetaljer[[#This Row],[Rabatt]]","v":{"v":40,"d":"kr 40.00"}}]
[null,"Faktura 3-456-2 Data 7","3-456-2","Z4573",70,{"v":6,"d":"kr 6.00"},null,{"$f":"(Fakturadetaljer[[#This Row],[Mengde]]*Fakturadetaljer[[#This Row],[Enhetspris]])-Fakturadetaljer[[#This Row],[Rabatt]]","v":{"v":420,"d":"kr 420.00"}}]
[null,"Faktura 3-456-2 Data 8","3-456-2","Z4574",25,{"v":4,"d":"kr 4.00"},null,{"$f":"(Fakturadetaljer[[#This Row],[Mengde]]*Fakturadetaljer[[#This Row],[Enhetspris]])-Fakturadetaljer[[#This Row],[Rabatt]]","v":{"v":100,"d":"kr 100.00"}}]
[null,"Faktura 3-456-2 Data 9","3-456-2","Z4575",5,{"v":7,"d":"kr 7.00"},{"v":3,"d":"kr 3.00"},{"$f":"(Fakturadetaljer[[#This Row],[Mengde]]*Fakturadetaljer[[#This Row],[Enhetspris]])-Fakturadetaljer[[#This Row],[Rabatt]]","v":{"v":32,"d":"kr 32.00"}}]
[null,"Faktura 3-456-2 Data 10","3-456-2","Z4576",80,{"v":1,"d":"kr 1.00"},null,{"$f":"(Fakturadetaljer[[#This Row],[Mengde]]*Fakturadetaljer[[#This Row],[Enhetspris]])-Fakturadetaljer[[#This Row],[Rabatt]]","v":{"v":80,"d":"kr 80.00"}}]
[null,"Faktura 3-456-2 Data 11","3-456-2","Z4577",65,{"v":7,"d":"kr 7.00"},null,{"$f":"(Fakturadetaljer[[#This Row],[Mengde]]*Fakturadetaljer[[#This Row],[Enhetspris]])-Fakturadetaljer[[#This Row],[Rabatt]]","v":{"v":455,"d":"kr 455.00"}}]
[null,"Faktura 3-456-2 Data 12","3-456-2","Z4578",44,{"v":1,"d":"kr 1.00"},null,{"$f":"(Fakturadetaljer[[#This Row],[Mengde]]*Fakturadetaljer[[#This Row],[Enhetspris]])-Fakturadetaljer[[#This Row],[Rabatt]]","v":{"v":44,"d":"kr 44.00"}}]

{"sheet":"Om sporing av salgsfaktura","index":4,"n_rows":40,"n_cols":3,"rows_kept":40,"merged":[[3,1,3,7],[4,1,4,7],[5,1,5,7],[6,1,6,7],[7,2,7,7],[8,2,8,7],[9,2,9,7],[10,2,10,7],[11,2,11,7],[12,1,12,7],[13,2,13,3],[14,2,14,7],[15,1,15,7],[16,2,16,7],[17,2,17,7],[18,2,18,7],[19,2,19,7],[20,2,20,7],[21,2,21,7],[22,1,22,7],[23,1,23,7],[24,2,24,7],[25,2,25,7],[26,2,26,7],[27,2,27,7],[28,1,28,7],[29,1,29,7],[30,2,30,7],[31,2,31,7],[32,2,32,7],[33,2,33,7],[34,2,34,7],[36,2,36,7],[37,2,37,7],[38,2,38,7],[39,2,39,7]]}
[null,"Om sporing av salgsfaktura"]
[]
[]
[null,"Sporing av salgsfaktura er utformet for å opprettholde en logg over kunder, fakturaer og fakturadetaljer, slik at du kan lagre flere fakturaer uten å opprette flere filer. Du kan også bruke fakturasporing til å analysere tidligere fakturerte data. Du kan for eksempel vise alle fakturaene fra en kunde, et spesifikt prosjekt, eller vise alle fakturaer for den siste måneden, det siste året og mer."]
[null,"Se på de medfølgende eksempeldataene før du setter i gang. Velg cellen til høyre for Fakturanummer (celle L8) på Faktura-arket, og du ser deretter en rullegardinliste. Velg rullegardinpilen og velg deretter en eksempelfaktura. Legg merke til hvordan all fakturainformasjonen endres automatisk for å gjenspeile den valgte fakturaen. Nå kan du se på detaljene i arkene Kunder, Fakturaer – Hoved, og Fakturadetaljer. Hvert av disse arkene leverer informasjon til fakturaen og eventuelle endringer du gjør oppdateres automatisk. "]
[null,"Hvordan kommer jeg i gang?"]
[null,"Endre Faktura-arket slik at det gjenspeiler firmainformasjonen ved å gjøre følgende:"]
[null,"1.","Naviger til Faktura-arket og velg Opphev arkbeskyttelse i Beskytt-gruppen på Se gjennom-fanen. "]
[null,null,"Obs! Faktura-arket er skrivebeskyttet for å unngå utilsiktede endringer. Som tidligere nevnt er dette på grunn av at de fleste dataene i arket hentes fra alle andre ark i arbeidsboken. "]
[null,"2.","Tilpass fakturaoverskriften ved å skrive inn Firmanavn, Gateadresse, Poststed, Postnummer, E-postadresse, Nettsted og lignende. På bunnen av fakturaen (rad 43) kan du endre betalingsinstruksjonene. "]
[null,null,"Viktig! Ikke endre faktureringsinformasjonen. Alle disse cellene har formler som oppdaterer fakturaen automatisk, som ble nevnt i inndelingen Om sporing av salgsfaktura.  "]
[null,"3.","(Valgfritt) Endre fargene i arbeidsboken: Velg Farger i Temaer-gruppen på Sideoppsett-fanen, og velg en annen temafarge fra fargegalleriet. "]
[null,"Tips: Opprett et egendefinert fargesett for å samsvare med merkevaren til firmaet! Velg Farger i Temaer-gruppen på Sideoppsett-fanen, og velg deretter Tilpass farger. Hvis du vil ha mer informasjon om hvordan du oppretter et egendefinert fargesett, viser du følgende hjelpeemne: "]
[null,null,"Tilpasse et dokumenttema."]
[null,"4.","Etter at du har foretatt ønskede endringer, går du tilbake til Faktura-arket. Velg Beskytt ark i Endringer-gruppen på Se gjennom-fanen, og deretter OK. Når Faktura-arket er beskyttet, kan du kun merke cellen med rullegardinlisten for Fakturanummer."]
[null,"Hvordan oppretter jeg en faktura?"]
[null,"1.","Skriv inn kundeinformasjon som firmanavn og -adresse på Kunde-arket. Vær oppmerksom på at Firmanummer er en viktig oppføring da den gir en unik identifikator for hvert firma som brukes i Sporing av salgsfaktura. Vær også oppmerksom på at du bare trenger å legge til firmaet én gang. Du kan hoppe over dette trinnet hvis du har etterfølgende fakturaer til samme firma. "]
[null,null,"Obs! Hvis du tilordner det samme nummeret til mer enn ett firma eller skriver inn det samme firmanavnet flere ganger, blir oppføringene røde. Det er et varsel om at de er dupliseringer. "]
[null,"2.","Skriv inn den primære informasjonen for fakturaen som fakturanummer, faktureringsdato og prosjektbeskrivelse på arket Fakturaer – Hoved. Vær oppmerksom på at Fakturanummer, på lik linje med Firmanummer, er en viktig oppføring da den gir en unik identifikator for hver faktura som brukes i Sporing av salgsfaktura. En annen viktig oppføring er Firma. Når du velger et firma fra rullegardinlisten, knyttes fakturaen til det firmaet. Når du velger et fakturanummer på Faktura-arket, blir firmainformasjonen, som firmanavn og -adresse, automatisk fylt inn på fakturaen."]
[null,null,"Obs! Hvis du tilordner det samme nummeret til mer enn én faktura, blir oppføringene røde. Det er et varsel om at de er dupliseringer. "]
[null,"3.","Skriv inn detaljene for fakturaen på Fakturadetaljer-arket, som Elementbeskrivelse, Elementnummer, Antall og Enhetspris. Rullegardinlisten for Fakturanummer viser en liste over fakturaer som du selv oppførte på arket Fakturaer – Hoved. Fakturanummer tilknytter det detaljelementet med en spesifikk faktura, i likhet med Firmanummer i det forrige trinnet. Når du velger et fakturanummer på Faktura-arket fra rullegardinlisten for Fakturanummer, vises de tilknyttede fakturadetaljelementene for den fakturaen."]
[null,null,"Obs! Du er begrenset til 25 detaljelementer per faktura. Hvis du legger til mer enn 25 elementer, blir alle tilsvarende oppføringer røde. Det er et varsel om begrensningen. Hvis du har mer enn 25 fakturaelementer, må du opprette en ny faktura. "]
[null,"Hvordan legger jeg til flere kunder, fakturaer og fakturadetaljer?"]
[null,"Dataene for Kunder, Fakturaer og Fakturadetaljer er lagret i Excel-tabeller. Når du legger til en ny rad i en tabell, formateres den nye raden automatisk og eventuelle beregninger kopieres. Gjør ett av følgende for å legge til nye tabellrader:"]
[null,"● ","Hvis tabellen ikke har en totalrad, begynner du å skrive inn under tabellen. Den utvides automatisk når du trykker på ENTER eller TAB."]
[null,"● ","Plasser cellepekeren i den siste cellen over totalraden, for eksempel Fakturaer-tabellen i Notater-cellen for den siste fakturaen, og trykk deretter på TAB."]
[null,"● ","Velg Sett inn i Celler-gruppen på Hjem-fanen, og velg deretter Tabellrad over eller Tabellrad under. "]
[null,"● ","Plasserer musen på skaleringshåndtaket i tabellen i det nedre høyre hjørnet av tabellen, og dra for å øke antall tilgjengelige tabellrader."]
[null,"Hvordan analyserer jeg fakturadetaljene?"]
[null,"Etter at du har lagt inn flere fakturaer, kan du vise en liste over alle fakturaene for en spesifikk kunde, et spesifikt prosjekt, et spesifikt datointervall og mye mer. Dette forklarer i inndelingen Om sporing av salgsfaktura. Denne typen analyse gjennomføres ved bruk av et filter som gjør at du raskt kan begrense en liste med data. Hvis du vil bruke et filter på Kunder-, Fakturaer- eller Fakturadetaljer-tabellene, velger du en rullegardinpil ved siden av navnet på tabellfeltet. En Filter-rute vises og du kan se en rekke filtreringsalternativer. Her kan du se et par filtreringseksempler som hjelper deg i gang:"]
[null,"● ","Slik viser du totalbeløpet du har fakturert en spesifikk kunde: Velg rullegardinpilen på arket Fakturaer – Hoved, til høyre for Firmanummer-feltet. Klikk på Velg alle i Filter-ruten for å fjerne merkingen av alle firmaene, velg ønsket firma, og velg deretter OK. "]
[null,null,"Tips: I Filtrer-ruten kan du også skrive inn kundenavn i tekstboken Søk for å utføre et raskt søk i den tilgjengelige listen."]
[null,"● ","Slik viser du alle fakturaene for en spesifikk kunde og spesifikke prosjekter: Begynn ved å filtrere for ønskede kunde ved bruk av fremgangsmåten fra forrige eksempel. Deretter velger du rullegardinpilen Velg ønsket prosjekt eller prosjekter i Filter-ruten, og velg deretter OK. "]
[null,"● ","Slik viser du alle fakturaene for forrige måned: Velg rullegardinpilen på arket Fakturaer – Hoved, til høyre for datofeltet, pek til Datofiltre. Velg deretter Forrige måned."]
[null,"● ","Slik viser du alle kundene med samme postnummer: Velg rullegardinpilen på Kunde-arket, til høyre for Telefon-feltet. Klikk i tekstboksen Søk i Filter-ruten, skriv inn postnummeret, og velg deretter OK. "]
[null,"Filtertips"]
[null,"● ","Hvis tabellen har en totalrad, som Kunder og Fakturaer, vil den beregnede totalen bare gjenspeile den filtrerte listen."]
[null,"● ","Bruk flere filtre på et enkelt felt eller på flere felter for å finjustere resultatene."]
[null,"● ","Hvis du ønsker å slette et enkelt filter, velger du rullegardinpilen for en tidligere filtrert kolonne, og velger deretter Tøm filter fra <feltnavn>."]
[null,"● ","Hvis du ønsker å slette flere filtre samtidig, plasserer du markøren i tabellen, velger Sorter og filtrer i Redigering-gruppen på Hjem-fanen, og deretter Fjern."]